bitfinex-derivatives/quotes_ETHF0:USTF0_20250317
["timestamp","ask_amount","ask_price","bid_price","bid_amount"]
[1742198896211,38.35369592,1899.8,1899.7,1.3617]
[1742198897913,38.44135112,1899.8,1899.7,1.3617]
[1742198899319,1.05302,1899.5,1899.3,41.86097979]
[1742198899520,4.26082,1899.5,1899.4,1.4287]
[1742198899721,7.66982,1899.5,1899.4,1.4287]
[1742198900218,6.6168,1899.5,1899.4,1.4287]
[1742198900421,4.8705,1899.5,1899.4,1.4287]
[1742198900812,4.8705,1899.5,1899.4,2.48174]
[1742198901013,3.409,1899.5,1899.4,2.48174]
[1742198903423,3.2078,1899.7,1899.6,1.05293]
[1742198903722,6.6168,1899.7,1899.6,1.05293]
[1742198904219,6.6168,1899.7,1899.6,3.12023]
[1742198905523,3.2078,1899.7,1899.6,3.12023]
[1742198905723,6.6158,1899.7,1899.6,3.12023]
[1742198908325,30.62565556,1899.8,1899.7,1.05288]
[1742198908625,34.03365556,1899.8,1899.7,2.49158]
[1742198908827,32.69465556,1899.8,1899.7,2.49158]
[1742198910323,29.28665556,1899.8,1899.7,2.49158]
[1742198910625,32.69465556,1899.8,1899.7,2.49158]
[1742198912226,29.28665556,1899.8,1899.7,2.49158]
[1742198912529,32.69465556,1899.8,1899.7,2.49158]
[1742198917523,0.08765556,1899.8,1899.7,8.49158]
[1742198917729,4.6511098,1900.2,1900.1,1.05266]
[1742198918031,8.0591098,1900.2,1900.1,1.05266]
[1742198918325,1.4433098,1900.2,1900.1,1.05266]
[1742198918627,4.8513098,1900.2,1900.1,1.05266]
[1742198921530,4.8513098,1900.2,1900.1,2.39646]
[1742198922531,4.8503098,1900.2,1900.1,2.39646]
[1742198922729,4.8503098,1900.2,1900.1,3.08726]
[1742198925832,4.8503098,1900.2,1900.1,2.39646]
[1742198926927,9.1107098,1900.2,1899.9,0.6858]
[1742198927233,4.26055,1900.0,1899.7,7.05284]
[1742198927429,5.86807,1899.9,1899.7,1.05284]
[1742198927628,1.4443,1899.8,1899.7,2.37678]
[1742198927834,1.4443,1899.8,1899.7,1.3239]
[1742198928033,1.4443,1899.8,1899.6,4.26069]
[1742198928225,1.4443,1899.8,1899.7,1.05288]
[1742198928430,1.4443,1899.8,1899.7,1.3239]
[1742198928735,1.4443,1899.8,1899.7,2.37678]
[1742198929634,1.4443,1899.8,1899.7,1.3239]
[1742198929832,1.4443,1899.8,1899.6,4.2607]
[1742198929833,1.4443,1899.8,1899.6,5.6663]
[1742198930233,1.4443,1899.8,1899.7,1.05288]
[1742198930538,1.4443,1899.8,1899.4,0.6858]
[1742198930539,4.73908387,1899.8,1899.4,0.6858]
[1742198930732,1.05294,1899.6,1899.4,2.0914]
[1742198930933,3.407,1899.5,1899.4,2.0914]
[1742198931134,4.8427,1899.5,1899.4,3.14444]
[1742198931934,3.407,1899.5,1899.4,3.14444]
[1742198932129,1.336,1899.7,1899.6,1.05293]
[1742198932441,4.743,1899.7,1899.6,1.05293]
[1742198932632,4.743,1899.7,1899.6,41.85293]
[1742198932832,4.743,1899.7,1899.6,42.56283]
[1742198934534,3.407,1899.7,1899.6,42.56283]
[1742198934731,1.46,1899.9,1899.8,1.05282]
[1742198934928,3.2078,1900.8,1900.1,1.05266]
[1742198935133,1.46,1900.5,1900.1,1.05266]
[1742198935332,1.46,1900.5,1900.1,5.56476]
[1742198935635,3.407,1900.6,1900.1,12.27216]
[1742198936334,3.407,1900.6,1900.1,53.07216]
[1742198936641,3.407,1900.6,1900.1,53.77396222]
[1742198936843,1.46,1900.7,1900.1,53.77396222]
[1742198937140,4.867,1900.7,1900.1,53.77396222]
[1742198938240,1.3863,1900.6,1900.1,53.77396222]
[1742198939143,1.3863,1900.6,1900.1,53.07216]
[1742198939938,1.3863,1900.6,1900.1,50.57216]
[1742198943244,3.406,1900.5,1900.1,53.07216]
[1742198944041,3.406,1900.5,1900.1,50.57216]
[1742198944244,1.3379,1900.4,1900.1,50.57216]
[1742198948549,2.039,1900.4,1900.1,50.57216]
[1742198948750,1.3856,1900.3,1900.1,50.57216]
[1742198951755,3.406,1900.5,1900.1,50.57216]
[1742198951953,1.3511,1900.4,1900.1,50.57216]
[1742198952648,0.7275,1900.6,1900.1,50.57216]
[1742198952845,3.405,1900.5,1900.1,50.57216]
[1742198953047,4.1325,1900.6,1900.1,50.57216]
[1742198953249,1.3293,1900.5,1900.1,50.57216]
[1742198956654,1.3293,1900.5,1900.1,53.07216]
[1742198957959,32.4088,1901.0,1900.6,2.63094]
[1742198958148,3.405,1900.9,1900.8,1.05227]
[1742198958555,4.0657,1900.9,1900.8,41.85227]
[1742198958849,4.0657,1900.9,1900.8,43.17977]
[1742198959451,0.6607,1900.9,1900.8,43.17977]
[1742198959746,0.6607,1900.9,1900.8,46.38757]
[1742198961049,1.9943,1900.9,1900.8,46.38757]
[1742198961757,1.9943,1900.9,1900.8,45.06007]
[1742198961956,3.74231,1900.9,1900.7,1.0601598]
[1742198962158,1.4306,1900.8,1900.7,1.0601598]
[1742198962464,1.4306,1900.8,1900.7,41.8601598]
[1742198962657,2.48287,1900.8,1900.7,40.8078798]
[1742198962863,1.4306,1900.8,1900.7,40.8078798]
[1742198963061,1.4306,1900.8,1900.7,41.8601998]
[1742198966560,1.4306,1900.8,1900.7,43.1979998]
[1742198969567,1.4306,1900.8,1900.7,41.8601998]
[1742198970865,2.48287,1900.8,1900.7,40.8078798]
[1742198971065,1.4306,1900.8,1900.7,40.8078798]
[1742198972772,1.4306,1900.8,1900.7,41.8601998]
[1742198973774,1.4306,1900.8,1900.7,43.2949998]
[1742198975477,0.6607,1900.9,1900.8,1.05227]
[1742198975776,5.5167,1900.9,1900.8,2.43217]
[1742198976476,6.56895,1900.9,1900.7,40.8078798]
[1742198976685,1.452,1900.8,1900.7,41.8601698]
[1742198980878,1.452,1900.8,1900.7,42.5723698]
[1742198984979,3.404,1900.9,1900.8,1.05227]
[1742198985286,4.7996,1900.9,1900.8,2.47277]
[1742198985781,1.3956,1900.9,1900.8,2.47277]
[1742198985988,30.6044798,1901.0,1900.9,1.05221]
[1742198986285,34.0084798,1901.0,1900.9,2.47271]
[1742198990984,34.0084798,1901.0,1900.9,1.4205]
[1742198991188,35.0606698,1901.0,1900.8,1.3924]
[1742198991390,2.7447,1900.9,1900.8,2.44467]
[1742198995391,3.79691,1900.9,1900.8,1.3924]
[1742198995690,2.7447,1900.9,1900.8,2.44467]
[1742198996595,6.1487,1900.9,1900.8,2.44467]
[1742198998089,6.1487,1900.9,1900.8,1.3924]
[1742198998391,6.1487,1900.9,1900.8,2.44467]
[1742198998691,7.20091,1900.9,1900.8,1.3924]
[1742198998990,6.1487,1900.9,1900.8,2.44467]
[1742199000590,7.20091,1900.9,1900.8,2.44467]
[1742199000794,6.1487,1900.9,1900.8,2.44467]
[1742199001095,5.4466,1900.9,1900.8,2.44467]
[1742199002490,5.4466,1900.9,1900.8,1.3924]
[1742199002995,5.4466,1900.9,1900.8,2.44467]
[1742199003392,1.3761,1900.9,1900.8,2.44467]
[1742199003585,0.0078798,1901.0,1900.9,1.05221]
[1742199003894,0.0078798,1901.0,1900.9,6.34121]
[1742199004994,1.3339798,1901.0,1900.9,2.40331]
[1742199007395,0.0078798,1901.0,1900.9,2.40331]
[1742199007696,3.4108798,1901.0,1900.9,2.40331]
[1742199010000,0.0078798,1901.0,1900.9,2.40331]
[1742199015501,1.3619798,1901.0,1900.9,2.40331]
[1742199016109,2.4141398,1901.0,1900.9,1.3511]
[1742199016313,3.8335398,1901.0,1900.9,1.3511]
[1742199016511,2.7813798,1901.0,1900.9,2.40331]
[1742199017503,5.9891798,1901.0,1900.9,1.3511]
[1742199017812,7.0413698,1901.0,1900.8,1.05227]
[1742199018012,1.412,1900.9,1900.8,2.48337]
[1742199022622,1.412,1900.9,1900.7,40.8078798]
[1742199022927,3.403,1900.8,1900.7,43.2631998]
[1742199023129,3.403,1900.8,1900.7,41.8601998]
[1742199023317,4.7224,1900.8,1900.7,41.8601998]
[1742199025620,4.7224,1900.8,1900.7,40.8078798]
[1742199025820,5.77467,1900.8,1900.7,40.8078798]
[1742199026828,5.86159705,1900.8,1900.7,40.8078798]
[1742199027331,9.06939705,1900.8,1900.7,1e-08]
[1742199027525,1.0525,1900.4,1900.2,4.26037]
[1742199027725,5.12834,1900.3,1900.1,1.05264]
[1742199027920,6.1912,1900.3,1900.1,41.85264]
[1742199028222,1.4007,1900.2,1900.1,41.85264]
[1742199028821,5.6611,1900.2,1900.1,40.8]
[1742199031330,4.6085,1900.2,1900.1,40.8]
[1742199031528,4.6085,1900.2,1900.1,41.85266]
[1742199031936,4.6085,1900.2,1900.1,40.8]
[1742199032732,5.6611,1900.2,1900.1,40.8]
[1742199035331,4.6085,1900.2,1900.1,41.85266]
[1742199035531,4.6085,1900.2,1900.1,43.24246]
[1742199035732,4.6085,1900.2,1900.1,42.1898]
[1742199035932,5.6611,1900.2,1900.1,42.1898]
[1742199037634,8.0115,1900.2,1900.1,42.1898]
[1742199037830,8.0115,1900.2,1900.1,42.8642]
[1742199038031,9.0641,1900.2,1900.1,42.1898]
[1742199038537,8.0115,1900.2,1900.1,42.1898]
[1742199039740,9.15105574,1900.2,1900.1,42.1898]
[1742199042839,1.05271,1900.0,1899.9,1.3574]
[1742199043040,4.26051,1900.0,1899.9,1.3574]
[1742199043236,4.26051,1900.0,1899.9,40.8]
[1742199043440,1.05286,1899.8,1899.6,1.3589]
[1742199043744,3.404,1899.7,1899.6,1.3589]
[1742199043933,4.7833,1899.7,1899.6,2.41183]
[1742199044346,4.7833,1899.7,1899.6,43.21183]
[1742199045442,4.7833,1899.7,1899.6,42.1589]
[1742199046642,4.7833,1899.7,1899.6,43.21183]
[1742199046941,4.7833,1899.7,1899.6,42.1589]
[1742199047246,4.7833,1899.7,1899.6,43.21183]
[1742199047444,3.404,1899.7,1899.6,43.21183]
[1742199047743,0.0078798,1899.8,1899.7,1.05288]
[1742199048039,3.4118798,1899.8,1899.7,1.05288]
[1742199048237,3.4118798,1899.8,1899.7,1.432]
[1742199048437,3.4118798,1899.8,1899.7,43.28488]
[1742199048646,4.7411798,1899.8,1899.7,43.28488]
[1742199049535,3.4118798,1899.8,1899.7,43.28488]
[1742199052746,4.8739798,1899.8,1899.7,43.28488]
[1742199053446,5.9267998,1899.8,1899.7,1.432]
[1742199053839,4.96095676,1899.8,1899.7,1.432]
[1742199054040,5.9267998,1899.8,1899.7,1.432]
[1742199054645,6.01377709,1899.8,1899.7,1.432]
[1742199056544,1.05293,1899.6,1899.5,0.00787979]
[1742199056935,1.13991957,1899.6,1899.5,1.39757979]
[1742199057137,2.53041957,1899.6,1899.5,42.19757979]
[1742199057848,2.53041957,1899.6,1899.5,40.80787979]
[1742199058042,2.44343,1899.6,1899.5,40.80787979]
[1742199058242,2.53042155,1899.6,1899.5,40.80787979]
[1742199058838,2.53042155,1899.6,1899.5,0.00787979]
[1742199060147,2.44343,1899.6,1899.5,0.00787979]
[1742199060345,2.5304216,1899.6,1899.5,0.00787979]
[1742199061043,1.1399216,1899.6,1899.5,0.00787979]
[1742199061547,1.85992047,1899.6,1899.5,0.00787979]
[1742199061747,3.25072047,1899.6,1899.5,0.00787979]
[1742199062146,6.45852047,1899.6,1899.5,0.00787979]
[1742199064745,6.45852157,1899.6,1899.5,0.00787979]
[1742199065451,5.40559157,1899.6,1899.5,0.00787979]
[1742199065646,4.7948,1899.6,1899.5,1.38427979]
[1742199065850,5.84773,1899.6,1899.5,1.38427979]
[1742199067645,4.7948,1899.6,1899.5,1.38427979]
[1742199068245,4.7948,1899.6,1899.5,2.43726979]
[1742199068539,4.7948,1899.6,1899.5,1.38427979]
[1742199070146,1.3908,1899.6,1899.5,2.43726979]
[1742199070347,3.404,1899.6,1899.5,2.43726979]
[1742199071652,4.5994798,1899.8,1899.7,1.05288]
[1742199071954,8.09045751,1899.8,1899.7,1.05288]
[1742199072353,8.09045751,1899.8,1899.7,2.44348]
[1742199073352,8.09045751,1899.8,1899.7,1.3906]
[1742199073850,8.09045751,1899.8,1899.7,2.44348]
[1742199074043,6.70665751,1899.8,1899.7,2.44348]
[1742199075352,6.70665751,1899.8,1899.7,1.3906]
[1742199075854,8.15443955,1899.8,1899.7,2.44348]
[1742199076557,8.0674798,1899.8,1899.7,2.44348]
[1742199076853,8.0674798,1899.8,1899.7,1.3906]
[1742199077055,9.1202998,1899.8,1899.7,1.3906]
[1742199077258,8.0674798,1899.8,1899.7,1.3906]
[1742199077457,8.15443859,1899.8,1899.7,1.3906]
[1742199078552,9.20725859,1899.8,1899.7,1.3906]
[1742199078758,1.05288,1899.7,1899.5,0.00787979]
[1742199079061,3.10228,1899.7,1899.5,0.00787979]
[1742199079261,3.10228,1899.7,1899.5,1.34417979]
[1742199079459,1.3701,1899.6,1899.5,1.34417979]
[1742199080160,1.3701,1899.6,1899.5,2.39716979]
[1742199080564,7.6725098,1899.8,1899.5,1.34417979]
[1742199080859,9.0426098,1899.8,1899.6,2.38923]
[1742199081061,1.334,1899.7,1899.6,1.05293]
[1742199082463,4.738,1899.7,1899.6,1.05293]
[1742199082765,4.82493095,1899.7,1899.5,0.00787979]
[1742199082970,1.334,1899.6,1899.5,1.06082979]
[1742199083262,1.334,1899.6,1899.5,0.00787979]
[1742199083764,2.38693,1899.6,1899.5,0.00787979]
[1742199084163,3.13284174,1899.6,1899.5,0.00787979]
[1742199085458,6.34064174,1899.6,1899.5,0.00787979]
[1742199086358,6.25373,1899.6,1899.5,0.00787979]
[1742199086559,6.34063987,1899.6,1899.5,0.00787979]
[1742199087468,6.34063946,1899.6,1899.5,0.00787979]
[1742199088162,6.34064112,1899.6,1899.5,0.00787979]
[1742199089063,5.68164112,1899.6,1899.5,0.00787979]
[1742199089361,9.08564112,1899.6,1899.5,0.00787979]
[1742199089573,9.81274112,1899.6,1899.5,0.00787979]
[1742199091262,10.24225488,1899.6,1899.5,0.00787979]
[1742199091561,10.24225471,1899.6,1899.5,0.00787979]
[1742199092668,9.81274095,1899.6,1899.5,0.00787979]
[1742199093567,10.24061486,1899.6,1899.5,0.00787979]
[1742199093769,10.9068746,1899.6,1899.5,0.00787979]
[1742199094661,10.90682638,1899.6,1899.5,0.00787979]
[1742199095866,13.40682638,1899.6,1899.5,0.00295875]
[1742199097068,1.05321,1899.1,1899.0,40.8]
[1742199097256,33.66521,1899.1,1899.0,42.1589]
[1742199097461,33.75207315,1899.1,1899.0,1.3589]
[1742199098063,36.95987315,1899.1,1899.0,1.3589]
[1742199098964,1.05336,1898.9,1898.6,2.41236]
[1742199099163,5.91388,1898.8,1898.7,2.0353]
[1742199099572,4.8605,1898.8,1898.7,2.0353]
[1742199099973,5.91388,1898.8,1898.7,2.0353]
[1742199105174,4.8605,1898.8,1898.7,2.0353]
[1742199105568,5.91388,1898.8,1898.7,2.0353]
[1742199105867,4.8605,1898.8,1898.7,2.0353]
[1742199106071,5.91388,1898.8,1898.7,2.0353]
[1742199106763,4.8605,1898.8,1898.7,2.0353]
[1742199106968,5.91388,1898.8,1898.7,2.0353]
[1742199108377,5.91388,1898.8,1898.7,1.3528]
[1742199109473,6.00070275,1898.8,1898.7,1.3528]
[1742199109674,6.00070272,1898.8,1898.7,1.3528]
[1742199109878,5.91388,1898.8,1898.7,1.3528]
[1742199110776,1.05369,1898.3,1898.1,3.2078]
[1742199111078,4.26144,1898.4,1898.2,1.4133]
[1742199111280,3.405,1898.3,1898.2,2.46701]
[1742199112173,3.405,1898.3,1898.2,3.78561]
[1742199113086,3.405,1898.3,1898.2,2.7319]
[1742199113274,4.45865,1898.3,1898.2,2.7319]
[1742199113469,5.77535,1898.3,1898.2,2.7319]
[1742199114472,4.7217,1898.3,1898.2,2.7319]
[1742199114875,5.77535,1898.3,1898.2,2.7319]
[1742199115077,3.405,1898.3,1898.2,2.7319]
[1742199115278,4.45865,1898.3,1898.2,2.7319]
[1742199115486,5.79295,1898.3,1898.2,2.7319]
[1742199116085,4.7393,1898.3,1898.2,2.7319]
[1742199116286,5.79295,1898.3,1898.2,2.7319]
[1742199117986,4.7393,1898.3,1898.2,2.7319]
[1742199118988,3.405,1898.3,1898.2,3.78561]
[1742199119584,3.405,1898.3,1898.2,2.7319]
[1742199119980,5.84245,1898.3,1898.2,2.7319]
[1742199122186,5.92926342,1898.3,1898.2,2.7319]
[1742199122995,5.92926342,1898.3,1898.2,1.3186]
[1742199123178,1.05396,1897.8,1897.5,4.26188]
[1742199123382,32.629,1897.7,1897.5,2.0682]
[1742199123583,32.629,1897.7,1897.6,3.07024]
[1742199123890,32.629,1897.7,1897.6,43.87024]
[1742199124389,3.2078,1898.2,1897.6,43.87024]
[1742199124588,3.405,1898.1,1897.7,1.3527]
[1742199124785,4.8019,1898.1,1897.8,1.05393]
[1742199124982,2.45072,1898.0,1897.9,2.0682]
[1742199125291,1.3969,1898.0,1897.9,1.76938]
[1742199125491,1.3969,1898.0,1897.9,0.7155]
[1742199126690,2.45072,1898.0,1897.9,0.7155]
[1742199127090,1.05389,1897.9,1897.6,47.85402]
[1742199127287,4.45993,1897.8,1897.7,0.666]
[1742199127891,3.406,1897.8,1897.7,0.666]
[1742199128395,5.80973,1897.8,1897.7,0.666]
[1742199130083,4.7558,1897.8,1897.7,0.666]
[1742199131296,5.80973,1897.8,1897.7,0.666]
[1742199133290,9.01753,1897.8,1897.7,0.666]
[1742199133485,9.01753,1897.8,1897.6,40.8]
[1742199133486,1.05399,1897.7,1897.6,40.8]
[1742199133692,2.47279,1897.7,1897.6,40.8]
[1742199135392,2.47279,1897.7,1897.6,1.3521]
[1742199136193,2.47279,1897.7,1897.5,42.1699]
[1742199136194,1.05404,1897.6,1897.5,42.1699]
[1742199136401,1.3998,1897.6,1897.5,43.6075]
[1742199136706,2.45384,1897.6,1897.5,43.6075]
[1742199137600,1.3998,1897.6,1897.5,43.6075]
[1742199138097,2.45384,1897.6,1897.5,43.6075]
[1742199138504,1.3998,1897.6,1897.5,43.6075]
[1742199138705,3.406,1897.6,1897.5,43.6075]
[1742199139205,3.406,1897.6,1897.5,44.6616]
[1742199140308,2.46128,1897.9,1897.7,1.05397]
[1742199140504,1.05388,1897.9,1897.8,2.0114]
[1742199140699,4.45988,1897.9,1897.8,2.0114]
[1742199143104,3.49272942,1897.9,1897.5,45.72718]
[1742199143302,1.05399,1897.7,1897.6,2.1319]
[1742199143499,1.05399,1897.7,1897.6,1.4211]
[1742199143806,1.05399,1897.7,1897.5,40.8]
[1742199144000,1.05399,1897.7,1897.6,1.4211]
[1742199144308,33.69299,1897.7,1897.6,1.4211]
[1742199145606,32.639,1897.7,1897.6,2.47514]
[1742199146801,29.233,1897.7,1897.6,2.47514]
[1742199147007,32.639,1897.7,1897.6,2.47514]
[1742199149201,33.69299,1897.7,1897.6,2.47514]
[1742199149511,33.69299,1897.7,1897.6,1.4211]
[1742199149705,34.42369,1897.7,1897.6,1.4211]
[1742199151205,33.3697,1897.7,1897.6,2.47514]
[1742199151410,33.69299,1897.7,1897.6,1.4211]
[1742199151708,32.639,1897.7,1897.6,2.47514]
[1742199152716,32.639,1897.7,1897.6,1.4211]
[1742199153503,33.69299,1897.7,1897.6,1.4211]
[1742199153913,34.37199,1897.7,1897.6,1.4211]
[1742199154214,34.37199,1897.7,1897.6,42.2211]
[1742199154412,34.37199,1897.7,1897.4,4.97271]
[1742199154613,0.7157,1897.6,1897.5,1.3722]
[1742199154917,0.7157,1897.6,1897.5,42.1722]
[1742199155410,2.1598,1897.6,1897.5,42.1722]
[1742199156320,3.21384,1897.6,1897.5,40.8]
[1742199157018,3.21384,1897.6,1897.4,1.3722]
[1742199157205,1.352,1897.5,1897.4,1.3722]
[1742199157410,2.4061,1897.5,1897.3,6.6831]
[1742199157615,2.4061,1897.5,1896.6,5.63407717]
[1742199157616,1.05435,1897.1,1896.6,3.2078]
[1742199157910,3.409,1897.0,1896.8,1.05444]
[1742199158108,3.41690118,1897.0,1896.9,2.46233]
[1742199159507,3.41690118,1897.0,1896.9,1.4079]
[1742199159707,3.41690118,1897.0,1896.9,2.46233]
[1742199160614,0.00790118,1897.0,1896.9,2.46233]
[1742199160917,3.41990118,1897.0,1896.9,2.46233]
[1742199161317,3.41990118,1897.0,1896.9,43.26233]
[1742199163616,3.2078,1897.5,1897.4,1.05415]
[1742199163815,6.6198,1897.5,1897.4,1.05415]
[1742199164013,7.67393,1897.5,1897.2,6.0]
[1742199164211,6.6198,1897.5,1897.4,40.8]
[1742199164412,7.6739,1897.5,1897.4,40.8]
[1742199164614,7.6739,1897.5,1897.4,42.2179]
[1742199164921,9.0772,1897.5,1897.4,42.2179]
[1742199165419,9.0772,1897.5,1897.4,40.8]
[1742199165622,8.0231,1897.5,1897.4,43.27205]
[1742199166519,4.8153,1897.5,1897.4,43.27205]
[1742199166719,4.8153,1897.5,1897.4,43.95085]
[1742199167813,4.8153,1897.5,1897.4,2.0967]
[1742199168227,4.8153,1897.5,1897.4,3.15085]
[1742199169124,0.00790118,1897.6,1897.5,1.0541]
[1742199169320,4.82320118,1897.6,1897.5,2.4225]
[1742199169824,5.87724118,1897.6,1897.5,1.3684]
[1742199170027,5.87724118,1897.6,1897.4,0.6788]
[1742199170028,6.62783588,1897.6,1897.4,2.0472]
[1742199170228,1.4033,1897.5,1897.4,2.0472]
[1742199170830,2.4574,1897.5,1897.4,1.3684]
[1742199171022,1.48995249,1897.5,1897.4,1.3684]
[1742199171522,1.4033,1897.5,1897.4,1.3684]
[1742199172033,1.48994927,1897.5,1897.4,1.3684]
[1742199172232,2.4574,1897.5,1897.4,1.3684]
[1742199172423,2.54404773,1897.5,1897.4,1.3684]
[1742199172624,1.48994773,1897.5,1897.4,1.3684]
[1742199172926,2.54404773,1897.5,1897.4,1.3684]
[1742199173125,1.48994773,1897.5,1897.4,1.3684]
[1742199173325,2.54404773,1897.5,1897.4,1.3684]
[1742199175526,1.48994773,1897.5,1897.4,1.3684]
[1742199175835,1.4033,1897.5,1897.4,2.42255]
[1742199176436,4.8113,1897.5,1897.4,2.42255]
[1742199178335,3.408,1897.5,1897.4,2.42255]
[1742199180435,2.40844118,1897.6,1897.4,2.42252]
[1742199180740,3.407,1897.5,1897.4,1.05412]
[1742199180935,4.46112,1897.5,1897.3,41.46640118]
[1742199181240,4.7535,1897.5,1897.4,1.05415]
[1742199181641,4.7535,1897.5,1897.3,41.46640118]
[1742199181835,4.7535,1897.5,1897.4,1.05415]
[1742199182335,3.407,1897.5,1897.4,1.05415]
[1742199184841,4.7585,1897.5,1897.4,1.05415]
[1742199185449,4.7585,1897.5,1897.4,1.77295]
[1742199186642,1.3515,1897.5,1897.4,1.77295]
[1742199186838,4.7585,1897.5,1897.4,1.77295]
[1742199187945,3.407,1897.5,1897.4,1.77295]
[1742199189740,3.407,1897.5,1897.4,4.98075]
[1742199192741,1.33160118,1897.6,1897.5,1.0541]
[1742199192946,4.73760118,1897.6,1897.5,1.0541]
[1742199195848,4.73760118,1897.6,1897.5,2.4332]
[1742199209858,0.00790118,1897.6,1897.5,2.4332]
[1742199210054,3.41390118,1897.6,1897.5,2.4332]
[1742199210851,4.79370118,1897.6,1897.5,8.4332]
[1742199212860,1.38770118,1897.6,1897.5,8.4332]
[1742199214059,4.099,1897.8,1897.7,1.05399]
[1742199214559,3.406,1897.8,1897.7,1.05399]
[1742199214856,3.406,1897.8,1897.7,1.78069]
[1742199215161,29.9329,1898.0,1897.9,1.05388]
[1742199215364,33.3389,1898.0,1897.9,1.05388]
[1742199216553,34.1008,1898.0,1897.9,1.05388]
[1742199216754,32.64,1898.0,1897.9,3.18908]
[1742199216961,29.234,1898.0,1897.9,9.18908]
[1742199217158,1.4608,1898.2,1898.1,1.05376]
[1742199217459,3.406,1898.3,1898.2,1.05371]
[1742199217863,3.406,1898.3,1898.2,41.85371]
[1742199218062,1.3629,1898.3,1898.2,41.85371]
[1742199218261,1.3629,1898.3,1898.2,45.73191]
[1742199218462,0.00790118,1898.4,1898.3,1.05365]
[1742199218763,1.37080118,1898.4,1898.3,8.40545]
[1742199219458,0.00790118,1898.4,1898.3,8.40545]
[1742199220563,1.18e-06,1898.4,1898.3,10.90545]
[1742199220763,25.37000354,1898.6,1898.5,1.05354]
[1742199220964,25.37000354,1898.6,1898.5,4.26134]
[1742199221163,3.405,1898.8,1898.7,1.05343]
[1742199221368,4.8391,1898.8,1898.7,1.05343]
[1742199221756,4.8391,1898.8,1898.7,2.42513]
[1742199222157,1.4341,1898.8,1898.7,2.42513]
[1742199223968,0.00790118,1898.9,1898.8,1.05338]
[1742199224173,0.00790118,1898.9,1898.8,2.48168]
[1742199225370,1.46290118,1898.9,1898.8,2.48168]
[1742199228366,1.46290118,1898.9,1898.8,8.48168]
[1742199229266,1.46290118,1898.9,1898.8,7.05338]
[1742199229661,1.46290118,1898.9,1898.8,8.39748]
[1742199234267,1.46290118,1898.9,1898.8,2.39748]
[1742199241570,1.46290118,1898.9,1898.8,1.05338]
[1742199243484,1.46290118,1898.9,1898.8,2.51408]
[1742199248400,0.00790118,1898.9,1898.8,2.51408]
[1742199249299,1.18e-06,1898.9,1898.8,2.51408]
[1742199250791,1.44020118,1898.9,1898.8,2.51408]
[1742199251500,4.84320118,1898.9,1898.8,1.05338]
[1742199256791,5.89652118,1898.9,1898.7,1.05342]
[1742199257002,1.4243,1898.8,1898.7,1.05343]
[1742199257393,2.47768,1898.8,1898.7,1.05343]
[1742199257897,1.4243,1898.8,1898.7,1.05343]
[1742199258903,1.4243,1898.8,1898.7,1.73773]
[1742199261006,1.4243,1898.8,1898.7,1.05343]
[1742199261706,1.4243,1898.8,1898.7,2.48883]
[1742199264808,2.47768,1898.8,1898.7,1.05343]
[1742199265103,1.4243,1898.8,1898.6,1.06135118]
[1742199265310,2.8455,1898.7,1898.6,1.06135118]
[1742199265906,2.1144,1898.7,1898.6,1.06135118]
[1742199266108,2.1144,1898.7,1898.6,2.48515118]
[1742199267604,3.83483,1898.7,1898.6,2.48515118]
[1742199267808,2.7814,1898.7,1898.6,2.48515118]
[1742199268004,3.83483,1898.7,1898.6,2.48515118]
[1742199268200,3.83483,1898.7,1898.6,0.00790118]
[1742199268403,3.83483,1898.7,1898.6,1.06139118]
[1742199268714,3.83483,1898.7,1898.6,0.00790118]
[1742199268909,3.83483,1898.7,1898.6,1.06139118]
[1742199269209,2.7814,1898.7,1898.6,1.06139118]
[1742199269405,3.83483,1898.7,1898.6,1.06139118]
[1742199269604,3.83483,1898.7,1898.6,2.38789118]
[1742199272113,3.83483,1898.7,1898.6,1.06139118]
[1742199272301,3.83483,1898.7,1898.6,0.00790118]
[1742199273001,7.04263,1898.7,1898.6,0.00790118]
[1742199275704,2.1144,1898.7,1898.6,1.06139118]
[1742199276105,5.5174,1898.7,1898.6,1.06139118]
[1742199277007,5.5174,1898.7,1898.6,2.44879118]
[1742199290222,29.21900118,1898.9,1898.8,1.05338]
[1742199290518,30.58000118,1898.9,1898.8,1.05338]
[1742199290723,33.98200118,1898.9,1898.8,1.05338]
[1742199290923,33.98200118,1898.9,1898.8,3.10158]
[1742199294118,32.62100118,1898.9,1898.8,3.10158]
[1742199295121,29.21900118,1898.9,1898.8,9.10158]
[1742199295526,3.2078,1899.3,1899.2,1.05315]
[1742199295722,8.0518,1899.3,1899.2,1.05315]
[1742199296124,1.442,1899.3,1899.2,1.05315]
[1742199296329,4.844,1899.3,1899.2,2.41515]
[1742199297428,5.8971,1899.3,1899.1,4.92837]
[1742199297730,1.4156,1899.2,1899.1,4.92837]
[1742199298525,1.4156,1899.2,1899.1,1.05317]
[1742199298830,1.4156,1899.2,1899.0,1.3426]
[1742199298831,2.46875,1899.2,1899.0,2.39583]
[1742199299031,0.7297,1899.1,1899.0,2.39583]
[1742199299220,2.1453,1899.1,1899.0,2.39583]
[1742199299927,3.19851,1899.1,1899.0,2.39583]
[1742199300125,2.1453,1899.1,1899.0,2.39583]
[1742199301334,3.19851,1899.1,1899.0,1.3426]
[1742199302132,3.19851,1899.1,1898.7,1.05339]
[1742199302133,1.05334,1898.9,1898.7,1.05339]
[1742199302328,4.1112,1898.8,1898.7,2.46609]
[1742199302529,5.5,1898.8,1898.7,2.46609]